[Event "NOR-ch Various 2019"]
[Site "Larvik"]
[Date "2019.07.09"]
[Round "4.12"]
[White "Skaansar, Lasse"]
[Black "Ratama, Sofie Kristine"]
[Result "1/2-1/2"]
[ECO "A06"]
[WhiteElo "1394"]
[BlackElo "1329"]
[Annotator "NA"]
[PlyCount "119"]
[EventDate "2019.07.06"]
[EventType "swiss"]
[EventCountry "NOR"]
[SourceTitle "playchess.com"]
[Source "ChessBase"]
[SourceQuality "1"]
[TimeControl "40/5400+30:1800+30"]

1. b3 {[%emt 0:00:00]} d5 {[%emt 0:00:09]} 2. Nf3 {[%emt 0:00:00]} Bg4 {[%emt 0:00:58]} 3. Bb2 {[%emt 0:00:27]} Bxf3 {[%emt 0:01:15]} 4. exf3 {[%emt 0:01:03]} a6 {[%emt 0:00:56]} 5. Bd3 {[%emt 0:02:49]} e6 {[%emt 0:01:59]} 6. Nc3 {[%emt 0:00:42]} Nf6 {[%emt 0:00:58]} 7. Ne2 {[%emt 0:01:07]} Nc6 {[%emt 0:03:44]} 8. a3 {[%emt 0:01:23]} Bc5 {[%emt 0:01:25]} 9. Ng3 {[%emt 0:06:42]} O-O {[%emt 0:05:15]} 10. f4 {[%emt 0:14:11]} Re8 {[%emt 0:04:02]} 11. Nh5 {[%emt 0:13:19]} d4 {[%emt 0:01:39]} 12. Nxf6+ {[%emt 0:01:56]} Qxf6 {[%emt 0:00:17]} 13. Qh5 {[%emt 0:00:20]} g6 {[%emt 0:01:16]} 14. Qxc5 {[%emt 0:00:31]} e5 {[%emt 0:00:46]} 15. O-O-O {[%emt 0:04:36]} exf4 {[%emt 0:01:21]} 16. a4 {[%emt 0:11:53]} Rad8 {[%emt 0:03:54]} 17. Rde1 {[%emt 0:00:44]} Rxe1+ {[%emt 0:01:24]} 18. Rxe1 {[%emt 0:00:15]} Qh4 {[%emt 0:00:44]} 19. g3 {[%emt 0:02:01]} Qxh2 {[%emt 0:01:01]} 20. gxf4 {[%emt 0:02:44]} Qxf4 {[%emt 0:01:26]} 21. Rf1 {[%emt 0:08:47]} Ne5 {[%emt 0:04:16]} 22. Qe7 {[%emt 0:03:29]} Nc6 {[%emt 0:03:51]} 23. Qe4 {[%emt 0:00:47]} Qg5 {[%emt 0:01:44]} 24. Bxa6 {[%emt 0:00:57]} Na5 {[%emt 0:04:22]} 25. Bxb7 {[%emt 0:01:54]} Qc5 {[%emt 0:00:43]} 26. Kb1 {[%emt 0:04:26]} Qb4 {[%emt 0:01:40]} 27. Ba6 {[%emt 0:00:42]} Qxd2 {[%emt 0:00:54]} 28. Qd3 {[%emt 0:00:33]} Qf4 {[%emt 0:02:22]} 29. Bc1 {[%emt 0:00:32]} Qd6 {[%emt 0:02:03]} 30. Bd2 {[%emt 0:04:59]} Nc6 {[%emt 0:01:41]} 31. Bb5 {[%emt 0:01:27]} Ne7 {[%emt 0:03:17]} 32. Bc4 {[%emt 0:00:39]} Nf5 {[%emt 0:05:05]} 33. b4 {[%emt 0:02:02]} Ra8 {[%emt 0:03:29]} 34. a5 {[%emt 0:00:27]} Ne7 {[%emt 0:00:23]} 35. Qf3 {[%emt 0:00:21]} Rf8 {[%emt 0:00:23]} 36. Qb3 {[%emt 0:01:07]} c6 {[%emt 0:01:51]} 37. a6 {[%emt 0:01:15]} Nf5 {[%emt 0:02:04]} 38. Kb2 {[%emt 0:00:25]} Qc7 {[%emt 0:01:11]} 39. Ra1 {[%emt 0:00:38]} Qa7 {[%emt 0:00:37]} 40. Ra5 {[%emt 0:01:44]} Nd6 {[%emt 0:01:31]} 41. Bd3 {[%emt 0:31:47]} Rc8 {[%emt 0:33:26]} 42. Bf4 {[%emt 0:00:00]} Ne8 {[%emt 0:00:00]} 43. Bc4 {[%emt 0:00:00]} Nf6 {[%emt 0:00:00]} 44. Bxf7+ {[%emt 0:00:00]} Qxf7 {[%emt 0:00:00]} 45. Qxf7+ {[%emt 0:00:00]} Kxf7 {[%emt 0:00:00]} 46. a7 {[%emt 0:00:00]} Ra8 {[%emt 0:00:00]} 47. Bb8 {[%emt 0:00:00]} Ke6 {[%emt 0:00:00]} 48. Rc5 {[%emt 0:00:00]} Kd7 {[%emt 0:00:00]} 49. f3 {[%emt 0:00:00]} Ne8 {[%emt 0:00:00]} 50. Kb3 {[%emt 0:00:00]} Nc7 {[%emt 0:00:00]} 51. Kc4 {[%emt 0:00:00]} Na6 {[%emt 0:00:00]} 52. Kxd4 {[%emt 0:00:00]} Nxb8 {[%emt 0:00:00]} 53. axb8=Q Rxb8 {[%emt 0:00:00]} 54. c3 {[%emt 0:00:00]} Rf8 {[%emt 0:00:00]} 55. Ke4 {[%emt 0:00:00]} Kd6 {[%emt 0:00:00]} 56. Ke3 {[%emt 0:00:00]} Rb8 {[%emt 0:00:00]} 57. Kf4 {[%emt 0:00:00]} h6 {[%emt 0:00:00]} 58. Ra5 {[%emt 0:00:00]} Rb5 {[%emt 0:00:00]} 59. Ra7 {[%emt 0:00:00]} Rf5+ {[%emt 0:00:00]} 60. Kg4 {[%emt 0:00:00]} 1/2-1/2

[Event "NOR-ch Various 2019"]
[Site "Larvik"]
[Date "2019.07.09"]
[Round "4.15"]
[White "Gyldenas, Ole Jorn"]
[Black "Fossan, Petter"]
[Result "0-1"]
[ECO "D40"]
[WhiteElo "1957"]
[BlackElo "2295"]
[Annotator "NA"]
[PlyCount "142"]
[EventDate "2019.07.06"]
[EventType "swiss"]
[EventCountry "NOR"]
[SourceTitle "playchess.com"]
[Source "ChessBase"]
[SourceQuality "1"]
[TimeControl "40/5400+30:1800+30"]

1. d4 {[%emt 0:01:08]} Nf6 {[%emt 0:00:00]} 2. c4 {[%emt 0:00:24]} e6 {[%emt 0:00:00]} 3. Nf3 {[%emt 0:00:39]} c5 {[%emt 0:03:30]} 4. e3 {[%emt 0:02:43]} cxd4 {[%emt 0:00:17]} 5. exd4 {[%emt 0:00:08]} d5 {[%emt 0:00:07]} 6. Nc3 {[%emt 0:01:22]} Be7 {[%emt 0:02:53]} 7. Bg5 {[%emt 0:04:17]} O-O {[%emt 0:00:54]} 8. Rc1 {[%emt 0:01:03]} Nc6 {[%emt 0:06:47]} 9. Be2 {[%emt 0:07:10]} dxc4 {[%emt 0:00:24]} 10. Bxc4 {[%emt 0:01:00]} b6 {[%emt 0:02:42]} 11. O-O {[%emt 0:02:28]} Bb7 {[%emt 0:01:12]} 12. Qd2 {[%emt 0:12:55]} Rc8 {[%emt 0:02:41]} 13. Be2 {[%emt 0:02:29]} Nd5 {[%emt 0:20:42]} 14. Bxe7 {[%emt 0:08:53]} Ncxe7 {[%emt 0:05:14]} 15. Rfd1 {[%emt 0:02:52]} Nf5 {[%emt 0:05:25]} 16. Ne5 {[%emt 0:10:49]} Qe7 {[%emt 0:00:52]} 17. Nxd5 {[%emt 0:02:58]} Bxd5 {[%emt 0:00:43]} 18. b4 {[%emt 0:13:18]} f6 {[%emt 0:15:09]} 19. Nf3 {[%emt 0:01:12]} Rxc1 {[%emt 0:02:24]} 20. Rxc1 {[%emt 0:00:16]} Rd8 {[%emt 0:00:37]} 21. g4 {[%emt 0:04:53]} Bxf3 {[%emt 0:06:53]} 22. gxf5 {[%emt 0:00:27]} Bd5 {[%emt 0:00:07]} 23. Bg4 {[%emt 0:04:12]} exf5 {[%emt 0:04:01]} 24. Bxf5 {[%emt 0:00:21]} g6 {[%emt 0:01:28]} 25. Bd3 {[%emt 0:01:07]} Qe6 {[%emt 0:00:51]} 26. Qf4 {[%emt 0:07:16]} Qd6 {[%emt 0:07:25]} 27. Qd2 {[%emt 0:03:57]} Kg7 {[%emt 0:01:33]} 28. a3 {[%emt 0:00:17]} Rd7 {[%emt 0:01:26]} 29. Bf1 {[%emt 0:01:04]} Qe6 {[%emt 0:04:17]} 30. Qf4 {[%emt 0:00:35]} g5 {[%emt 0:00:06]} 31. Qg3 {[%emt 0:00:38]} Qe4 {[%emt 0:00:24]} 32. Bg2 {[%emt 0:01:19]} Qxd4 {[%emt 0:00:32]} 33. Bxd5 {[%emt 0:00:35]} Qxd5 {[%emt 0:00:22]} 34. Rc7 {[%emt 0:01:34]} Kg6 {[%emt 0:02:05]} 35. Rxd7 {[%emt 0:00:37]} Qxd7 {[%emt 0:00:05]} 36. Qf3 {[%emt 0:00:16]} Qd4 {[%emt 0:00:44]} 37. Kg2 {[%emt 0:00:27]} a5 {[%emt 0:02:16]} 38. b5 {[%emt 0:00:47]} h5 {[%emt 0:00:36]} 39. Qb3 {[%emt 0:00:24]} Kf5 {[%emt 0:00:49]} 40. a4 {[%emt 0:00:19]} h4 {[%emt 0:00:40]} 41. Kf1 {[%emt 0:03:05]} Kf4 {[%emt 0:03:49]} 42. h3 {[%emt 0:06:42]} g4 {[%emt 0:04:43]} 43. hxg4 {[%emt 0:00:44]} Kxg4 {[%emt 0:00:17]} 44. Kg2 {[%emt 0:01:47]} Kf4 {[%emt 0:01:17]} 45. Qf3+ {[%emt 0:01:13]} Kg5 {[%emt 0:00:12]} 46. Qb3 {[%emt 0:00:48]} Qg4+ {[%emt 0:01:35]} 47. Kh2 {[%emt 0:01:25]} Qf4+ {[%emt 0:09:44]} 48. Kg2 {[%emt 0:00:35]} Qe4+ {[%emt 0:00:07]} 49. Kh2 {[%emt 0:02:04]} Kf4 {[%emt 0:00:49]} 50. Qh3 {[%emt 0:02:20]} Ke5 {[%emt 0:00:40]} 51. Qc3+ {[%emt 0:00:45]} Kf5 {[%emt 0:02:27]} 52. Qb3 {[%emt 0:02:07]} Ke5 {[%emt 0:01:20]} 53. Qc3+ {[%emt 0:01:01]} Qd4 {[%emt 0:00:20]} 54. Qc2 {[%emt 0:00:44]} f5 {[%emt 0:00:36]} 55. Qc7+ {[%emt 0:01:24]} Ke4 {[%emt 0:00:56]} 56. Qc2+ {[%emt 0:02:49]} Kf4 {[%emt 0:00:14]} 57. Kg1 {[%emt 0:01:39]} Kg4 {[%emt 0:02:04]} 58. Qb3 {[%emt 0:00:51]} Kf4 {[%emt 0:00:50]} 59. Kg2 {[%emt 0:00:55]} Qe4+ {[%emt 0:00:36]} 60. Kg1 {[%emt 0:00:37]} Qe2 {[%emt 0:00:57]} 61. Kg2 {[%emt 0:00:52]} Qe4+ {[%emt 0:00:48]} 62. Kg1 {[%emt 0:00:19]} Kg4 {[%emt 0:02:55]} 63. Qg8+ {[%emt 0:00:39]} Kf3 {[%emt 0:00:30]} 64. Qb3+ {[%emt 0:01:03]} Ke2 {[%emt 0:00:15]} 65. Qb2+ {[%emt 0:00:31]} Kd3 {[%emt 0:00:06]} 66. Qb1+ {[%emt 0:01:29]} Kc4 {[%emt 0:00:26]} 67. Qc1+ {[%emt 0:00:51]} Kb4 {[%emt 0:00:19]} 68. Qc6 {[%emt 0:00:26]} Qd4 {[%emt 0:00:37]} 69. Qc2 {[%emt 0:00:16]} Qg4+ {[%emt 0:00:08]} 70. Kh2 {[%emt 0:02:39]} h3 {[%emt 0:00:34]} 71. f4 {[%emt 0:00:09]} Qg2+ {[%emt 0:00:47]} 0-1

[Event "NOR-ch Various 2019"]
[Site "Larvik"]
[Date "2019.07.09"]
[Round "4.16"]
[White "Odde, Eilif"]
[Black "Dyrnes, Jussi"]
[Result "1-0"]
[ECO "D66"]
[WhiteElo "1969"]
[BlackElo "1765"]
[Annotator "NA"]
[PlyCount "119"]
[EventDate "2019.07.06"]
[EventType "swiss"]
[EventCountry "NOR"]
[SourceTitle "playchess.com"]
[Source "ChessBase"]
[SourceQuality "1"]
[TimeControl "40/5400+30:1800+30"]

1. Nf3 {[%emt 0:00:00]} d5 {[%emt 0:00:03]} 2. d4 {[%emt 0:00:00]} Nf6 {[%emt 0:01:08]} 3. c4 {[%emt 0:00:00]} e6 {[%emt 0:00:36]} 4. Nc3 {[%emt 0:00:00]} Be7 {[%emt 0:00:44]} 5. Bg5 {[%emt 0:01:00]} O-O {[%emt 0:00:22]} 6. e3 {[%emt 0:00:04]} a6 {[%emt 0:04:25]} 7. Rc1 {[%emt 0:02:01]} Nbd7 {[%emt 0:03:57]} 8. Bd3 {[%emt 0:04:05]} Re8 {[%emt 0:07:51]} 9. O-O {[%emt 0:02:21]} c6 {[%emt 0:05:40]} 10. Re1 {[%emt 0:05:23]} b5 {[%emt 0:08:24]} 11. cxd5 {[%emt 0:05:42]} exd5 {[%emt 0:00:34]} 12. Qc2 {[%emt 0:05:36]} h6 {[%emt 0:03:05]} 13. Bxf6 {[%emt 0:02:56]} Bxf6 {[%emt 0:01:07]} 14. e4 {[%emt 0:01:53]} Nf8 {[%emt 0:02:36]} 15. exd5 {[%emt 0:03:28]} Rxe1+ {[%emt 0:00:34]} 16. Rxe1 {[%emt 0:00:10]} cxd5 {[%emt 0:00:19]} 17. Ne5 {[%emt 0:04:02]} Bb7 {[%emt 0:06:53]} 18. Bf5 {[%emt 0:05:50]} Bc8 {[%emt 0:08:40]} 19. Bxc8 {[%emt 0:08:25]} Rxc8 {[%emt 0:00:03]} 20. Qf5 {[%emt 0:03:09]} b4 {[%emt 0:03:23]} 21. Nxd5 {[%emt 0:04:11]} Bxe5 {[%emt 0:05:10]} 22. Qxc8 {[%emt 0:07:57]} Qxd5 {[%emt 0:04:16]} 23. Rxe5 {[%emt 0:02:32]} Qxd4 {[%emt 0:00:23]} 24. Re1 {[%emt 0:00:11]} Qd2 {[%emt 0:02:24]} 25. Qc1 {[%emt 0:00:24]} Qd6 {[%emt 0:03:56]} 26. Qd1 {[%emt 0:01:58]} Qc5 {[%emt 0:01:02]} 27. Re8 {[%emt 0:01:49]} Kh7 {[%emt 0:01:11]} 28. h3 {[%emt 0:02:35]} Ne6 {[%emt 0:02:06]} 29. Qd3+ {[%emt 0:03:23]} g6 {[%emt 0:00:39]} 30. Qe3 {[%emt 0:00:55]} Qd6 {[%emt 0:01:34]} 31. Rc8 {[%emt 0:02:39]} a5 {[%emt 0:03:31]} 32. Qf3 {[%emt 0:01:04]} Nf4 {[%emt 0:04:26]} 33. Qb3 {[%emt 0:09:37]} Kg7 {[%emt 0:06:56]} 34. Qe3 {[%emt 0:07:46]} g5 {[%emt 0:03:40]} 35. Rc4 {[%emt 0:01:27]} Qd1+ {[%emt 0:02:18]} 36. Kh2 {[%emt 0:00:09]} Ne2 {[%emt 0:02:06]} 37. f3 {[%emt 0:00:42]} Qd6+ {[%emt 0:01:02]} 38. f4 {[%emt 0:00:58]} gxf4 {[%emt 0:01:07]} 39. Qf3 {[%emt 0:01:50]} Qd1 {[%emt 0:00:37]} 40. Qf2 {[%emt 0:00:53]} Qd6 {[%emt 0:00:26]} 41. Re4 {[%emt 0:18:55]} f3+ {[%emt 0:13:14]} 42. g3 {[%emt 0:00:02]} Qd1 {[%emt 0:01:41]} 43. h4 {[%emt 0:03:56]} h5 {[%emt 0:01:44]} 44. Qxf3 {[%emt 0:01:53]} Qg1+ {[%emt 0:01:13]} 45. Kh3 {[%emt 0:00:02]} Nd4 {[%emt 0:00:23]} 46. Qg2 {[%emt 0:00:40]} Qd1 {[%emt 0:00:50]} 47. Rf4 {[%emt 0:01:59]} Ne2 {[%emt 0:02:11]} 48. Rf1 {[%emt 0:01:02]} Qd7+ {[%emt 0:01:30]} 49. Kh2 {[%emt 0:00:07]} Nd4 {[%emt 0:01:29]} 50. Qe4 {[%emt 0:01:31]} Ne6 {[%emt 0:01:41]} 51. Qf5 {[%emt 0:00:19]} Kf8 {[%emt 0:03:34]} 52. Rf2 {[%emt 0:00:28]} Qa7 {[%emt 0:01:18]} 53. Rc2 {[%emt 0:00:20]} Qd7 {[%emt 0:03:05]} 54. Qxh5 {[%emt 0:01:28]} Nd4 {[%emt 0:01:15]} 55. Rf2 {[%emt 0:00:48]} Ne6 {[%emt 0:00:53]} 56. Qxa5 {[%emt 0:00:46]} Qd4 {[%emt 0:00:17]} 57. Qa8+ {[%emt 0:00:32]} Kg7 {[%emt 0:01:27]} 58. Qf3 {[%emt 0:00:02]} f6 {[%emt 0:01:02]} 59. Re2 {[%emt 0:00:56]} Qc4 {[%emt 0:00:35]} 60. Qe4 {[%emt 0:00:18]} 1-0

[Event "NOR-ch Various 2019"]
[Site "Larvik"]
[Date "2019.07.09"]
[Round "4.17"]
[White "Heier, Odin Nikolai"]
[Black "Melaa, Sondre"]
[Result "0-1"]
[ECO "D00"]
[WhiteElo "1863"]
[BlackElo "2118"]
[Annotator "NA"]
[PlyCount "76"]
[EventDate "2019.07.06"]
[EventType "swiss"]
[EventCountry "NOR"]
[SourceTitle "playchess.com"]
[Source "ChessBase"]
[SourceQuality "1"]
[TimeControl "40/5400+30:1800+30"]

1. d4 {[%emt 0:00:00]} d5 {[%emt 0:00:00]} 2. Bf4 {[%emt 0:00:00]} Nf6 {[%emt 0:00:02]} 3. e3 {[%emt 0:00:00]} e6 {[%emt 0:00:06]} 4. c3 {[%emt 0:00:01]} Bd6 {[%emt 0:00:20]} 5. Bg3 {[%emt 0:00:05]} O-O {[%emt 0:00:18]} 6. Bd3 {[%emt 0:00:22]} b6 {[%emt 0:00:16]} 7. Nf3 {[%emt 0:00:15]} Bb7 {[%emt 0:03:07]} 8. Nbd2 {[%emt 0:00:21]} Ne4 {[%emt 0:00:10]} 9. Qc2 {[%emt 0:03:41]} f5 {[%emt 0:00:18]} 10. Ne5 {[%emt 0:03:54]} Nd7 {[%emt 0:05:54]} 11. f4 {[%emt 0:05:33]} Bxe5 {[%emt 0:02:07]} 12. fxe5 {[%emt 0:00:18]} Qg5 {[%emt 0:02:06]} 13. Nf1 {[%emt 0:08:41]} c5 {[%emt 0:09:48]} 14. Bf4 {[%emt 0:09:15]} Qh4+ {[%emt 0:02:24]} 15. Bg3 {[%emt 0:07:26]} Qh6 {[%emt 0:04:27]} 16. Qe2 {[%emt 0:37:05]} Rac8 {[%emt 0:01:10]} 17. Rd1 {[%emt 0:09:17]} Nb8 {[%emt 0:04:49]} 18. Bf2 {[%emt 0:05:56]} Nc6 {[%emt 0:01:22]} 19. a3 {[%emt 0:03:54]} a5 {[%emt 0:00:51]} 20. Nd2 {[%emt 0:00:41]} g5 {[%emt 0:02:57]} 21. O-O {[%emt 0:02:01]} Ne7 {[%emt 0:02:06]} 22. Be1 {[%emt 0:01:05]} Ng6 {[%emt 0:02:04]} 23. a4 {[%emt 0:00:55]} Kh8 {[%emt 0:01:39]} 24. Nf3 {[%emt 0:00:39]} Rg8 {[%emt 0:03:04]} 25. Kh1 {[%emt 0:00:28]} Rcf8 {[%emt 0:02:01]} 26. Nd2 {[%emt 0:00:30]} Bc6 {[%emt 0:01:11]} 27. Ra1 {[%emt 0:00:31]} f4 {[%emt 0:02:51]} 28. Kg1 {[%emt 0:00:21]} g4 {[%emt 0:02:01]} 29. Bc2 {[%emt 0:00:39]} Rf7 {[%emt 0:02:59]} 30. Bd3 {[%emt 0:00:29]} Rfg7 {[%emt 0:06:25]} 31. Bc2 {[%emt 0:00:26]} f3 {[%emt 0:01:06]} 32. Qd1 {[%emt 0:00:24]} fxg2 {[%emt 0:01:54]} 33. Kxg2 {[%emt 0:00:33]} Qh3+ {[%emt 0:00:36]} 34. Kg1 {[%emt 0:00:39]} g3 {[%emt 0:00:30]} 35. hxg3 {[%emt 0:00:29]} Nf4 {[%emt 0:00:32]} 36. Bxe4 {[%emt 0:00:28]} Rxg3+ {[%emt 0:00:30]} 37. Bxg3 {[%emt 0:00:35]} Qxg3+ {[%emt 0:00:09]} 38. Bg2 {[%emt 0:00:28]} Qxg2# {[%emt 0:00:39]} 0-1

[Event "NOR-ch Various 2019"]
[Site "Larvik"]
[Date "2019.07.09"]
[Round "4.17"]
[White "Kristiansen, Oddvar"]
[Black "Wessel-Berg, Dag"]
[Result "*"]
[ECO "D00"]
[WhiteElo "1479"]
[BlackElo "1486"]
[Annotator "NA"]
[PlyCount "30"]
[EventDate "2019.07.06"]
[EventType "swiss"]
[EventCountry "NOR"]
[SourceTitle "playchess.com"]
[Source "ChessBase"]
[SourceQuality "1"]
[TimeControl "40/5400+30:1800+30"]

1. d4 {[%emt 0:00:00]} d5 {[%emt 0:00:00]} 2. Bf4 {[%emt 0:00:00]} Nf6 {[%emt 0:00:02]} 3. e3 {[%emt 0:00:00]} e6 {[%emt 0:00:06]} 4. c3 {[%emt 0:00:01]} Bd6 {[%emt 0:00:20]} 5. Bg3 {[%emt 0:00:05]} O-O {[%emt 0:00:18]} 6. Bd3 {[%emt 0:00:22]} b6 {[%emt 0:00:16]} 7. Nf3 {[%emt 0:00:15]} Bb7 {[%emt 0:03:07]} 8. Nbd2 {[%emt 0:00:21]} Ne4 {[%emt 0:00:10]} 9. Qc2 {[%emt 0:03:41]} f5 {[%emt 0:00:18]} 10. Ne5 {[%emt 0:03:54]} Nd7 {[%emt 0:05:54]} 11. f4 {[%emt 0:05:33]} Bxe5 {[%emt 0:02:07]} 12. fxe5 {[%emt 0:00:18]} Qg5 {[%emt 0:02:06]} 13. Nf1 {[%emt 0:08:41]} c5 {[%emt 0:09:48]} 14. Bf4 {[%emt 0:09:15]} Qh4+ {[%emt 0:02:24]} 15. Bg3 {[%emt 0:07:26]} Qh6 {[%emt 0:04:27]} *

[Event "NOR-ch Various 2019"]
[Site "Larvik"]
[Date "2019.07.09"]
[Round "4.18"]
[White "Kizatbay, Abyl"]
[Black "Sjoberg, Isak"]
[Result "1/2-1/2"]
[ECO "C45"]
[WhiteElo "2216"]
[BlackElo "2182"]
[Annotator "NA"]
[PlyCount "79"]
[EventDate "2019.07.06"]
[EventType "swiss"]
[EventCountry "NOR"]
[SourceTitle "playchess.com"]
[Source "ChessBase"]
[SourceQuality "1"]
[TimeControl "40/5400+30:1800+30"]

1. e4 {[%emt 0:01:08]} e5 {[%emt 0:00:00]} 2. Nf3 {[%emt 0:00:42]} Nc6 {[%emt 0:00:07]} 3. d4 {[%emt 0:00:36]} exd4 {[%emt 0:00:13]} 4. Nxd4 {[%emt 0:00:03]} Bc5 {[%emt 0:01:04]} 5. Nb3 {[%emt 0:00:55]} Bb6 {[%emt 0:00:31]} 6. Nc3 {[%emt 0:00:05]} Nf6 {[%emt 0:00:05]} 7. Qe2 {[%emt 0:00:03]} d6 {[%emt 0:00:58]} 8. Be3 {[%emt 0:00:10]} Qe7 {[%emt 0:00:55]} 9. O-O-O {[%emt 0:00:28]} Be6 {[%emt 0:00:48]} 10. g3 {[%emt 0:00:10]} O-O-O {[%emt 0:06:40]} 11. Bg2 {[%emt 0:00:20]} Rhe8 {[%emt 0:03:29]} 12. Rhe1 {[%emt 0:00:14]} h6 {[%emt 0:19:59]} 13. Kb1 {[%emt 0:03:21]} Kb8 {[%emt 0:05:22]} 14. Bxb6 {[%emt 0:02:53]} axb6 {[%emt 0:00:09]} 15. Qb5 {[%emt 0:02:17]} Bd7 {[%emt 0:08:52]} 16. Qf1 {[%emt 0:03:32]} Qf8 {[%emt 0:05:20]} 17. f4 {[%emt 0:02:56]} Qh8 {[%emt 0:04:05]} 18. h3 {[%emt 0:23:33]} g5 {[%emt 0:05:22]} 19. Nb5 {[%emt 0:03:23]} Nh5 {[%emt 0:08:19]} 20. Qf3 {[%emt 0:04:22]} g4 {[%emt 0:00:05]} 21. hxg4 {[%emt 0:00:18]} Nf6 {[%emt 0:00:05]} 22. g5 {[%emt 0:01:48]} Bg4 {[%emt 0:05:18]} 23. Qc3 {[%emt 0:00:22]} hxg5 {[%emt 0:03:14]} 24. N3d4 {[%emt 0:01:50]} Bd7 {[%emt 0:04:26]} 25. e5 {[%emt 0:02:15]} dxe5 {[%emt 0:00:52]} 26. fxe5 {[%emt 0:04:46]} Ng4 {[%emt 0:01:14]} 27. Nxc6+ {[%emt 0:00:44]} Bxc6 {[%emt 0:00:08]} 28. Rxd8+ {[%emt 0:04:09]} Rxd8 {[%emt 0:00:05]} 29. Bxc6 {[%emt 0:00:02]} bxc6 {[%emt 0:00:05]} 30. Nd4 {[%emt 0:01:51]} Nxe5 {[%emt 0:00:29]} 31. a4 {[%emt 0:07:24]} c5 {[%emt 0:01:37]} 32. Nb5 {[%emt 0:03:36]} Nc6 {[%emt 0:00:21]} 33. Qf3 {[%emt 0:00:17]} Nd4 {[%emt 0:00:23]} 34. Qxf7 {[%emt 0:01:25]} Nxb5 {[%emt 0:00:31]} 35. axb5 {[%emt 0:00:05]} Qh2 {[%emt 0:01:17]} 36. Re8 {[%emt 0:07:27]} Qh1+ {[%emt 0:00:13]} 37. Ka2 {[%emt 0:00:15]} Qa8+ {[%emt 0:02:39]} 38. Kb1 {[%emt 0:03:01]} Qh1+ {[%emt 0:00:08]} 39. Ka2 {[%emt 0:00:09]} Qa8+ {[%emt 0:01:24]} 40. Kb1 {[%emt 0:00:06]} 1/2-1/2

[Event "NOR-ch Various 2019"]
[Site "Larvik"]
[Date "2019.07.09"]
[Round "4.18"]
[White "Omtvedt, Aleksander"]
[Black "Engeset, Audun"]
[Result "*"]
[ECO "C45"]
[WhiteElo "1871"]
[BlackElo "1944"]
[Annotator "NA"]
[PlyCount "34"]
[EventDate "2019.07.06"]
[EventType "swiss"]
[EventCountry "NOR"]
[SourceTitle "playchess.com"]
[Source "ChessBase"]
[SourceQuality "1"]
[TimeControl "40/5400+30:1800+30"]

1. e4 {[%emt 0:01:08]} e5 {[%emt 0:00:00]} 2. Nf3 {[%emt 0:00:42]} Nc6 {[%emt 0:00:07]} 3. d4 {[%emt 0:00:36]} exd4 {[%emt 0:00:13]} 4. Nxd4 {[%emt 0:00:03]} Bc5 {[%emt 0:01:04]} 5. Nb3 {[%emt 0:00:55]} Bb6 {[%emt 0:00:31]} 6. Nc3 {[%emt 0:00:05]} Nf6 {[%emt 0:00:05]} 7. Qe2 {[%emt 0:00:03]} d6 {[%emt 0:00:58]} 8. Be3 {[%emt 0:00:10]} Qe7 {[%emt 0:00:55]} 9. O-O-O {[%emt 0:00:28]} Be6 {[%emt 0:00:48]} 10. g3 {[%emt 0:00:10]} O-O-O {[%emt 0:06:40]} 11. Bg2 {[%emt 0:00:20]} Rhe8 {[%emt 0:03:29]} 12. Rhe1 {[%emt 0:00:14]} h6 {[%emt 0:19:59]} 13. Kb1 {[%emt 0:03:21]} Kb8 {[%emt 0:05:22]} 14. Bxb6 {[%emt 0:02:53]} axb6 {[%emt 0:00:09]} 15. Qb5 {[%emt 0:02:17]} Bd7 {[%emt 0:08:52]} 16. Qf1 {[%emt 0:03:32]} Qf8 {[%emt 0:05:20]} 17. f4 {[%emt 0:02:56]} Qh8 {[%emt 0:04:05]} *

[Event "NOR-ch Various 2019"]
[Site "Larvik"]
[Date "2019.07.09"]
[Round "4.19"]
[White "Sebastian, Andreas"]
[Black "Nielsen, Andre"]
[Result "1/2-1/2"]
[ECO "A47"]
[WhiteElo "1911"]
[BlackElo "2229"]
[Annotator "NA"]
[PlyCount "106"]
[EventDate "2019.07.06"]
[EventType "swiss"]
[EventCountry "NOR"]
[SourceTitle "playchess.com"]
[Source "ChessBase"]
[SourceQuality "1"]
[TimeControl "40/5400+30:1800+30"]

1. d4 {[%emt 0:00:00]} Nf6 {[%emt 0:00:00]} 2. Nf3 {[%emt 0:00:00]} b6 {[%emt 0:00:15]} 3. Bg5 {[%emt 0:00:51]} Ne4 {[%emt 0:03:10]} 4. Bh4 {[%emt 0:00:18]} Bb7 {[%emt 0:04:34]} 5. Nbd2 {[%emt 0:02:43]} Nxd2 {[%emt 0:05:45]} 6. Qxd2 {[%emt 0:00:55]} h6 {[%emt 0:00:45]} 7. e3 {[%emt 0:03:43]} g5 {[%emt 0:01:17]} 8. Bg3 {[%emt 0:01:06]} d6 {[%emt 0:04:06]} 9. Bd3 {[%emt 0:02:51]} Bg7 {[%emt 0:01:33]} 10. c3 {[%emt 0:02:02]} Nd7 {[%emt 0:01:30]} 11. O-O {[%emt 0:10:23]} Nf6 {[%emt 0:14:43]} 12. Rfe1 {[%emt 0:03:44]} Ne4 {[%emt 0:02:01]} 13. Qc2 {[%emt 0:00:14]} Nxg3 {[%emt 0:01:30]} 14. hxg3 {[%emt 0:00:07]} Qd7 {[%emt 0:04:48]} 15. e4 {[%emt 0:01:56]} O-O-O {[%emt 0:04:02]} 16. a4 {[%emt 0:03:03]} Kb8 {[%emt 0:04:59]} 17. a5 {[%emt 0:06:50]} g4 {[%emt 0:09:30]} 18. Nd2 {[%emt 0:08:29]} h5 {[%emt 0:04:04]} 19. Qb3 {[%emt 0:04:08]} h4 {[%emt 0:03:47]} 20. axb6 {[%emt 0:00:42]} cxb6 {[%emt 0:02:37]} 21. Qxf7 {[%emt 0:21:30]} Bh6 {[%emt 0:01:30]} 22. Nf1 {[%emt 0:04:10]} hxg3 {[%emt 0:01:01]} 23. Nxg3 {[%emt 0:00:25]} Rdf8 {[%emt 0:01:41]} 24. Qa2 {[%emt 0:01:58]} Ba8 {[%emt 0:00:19]} 25. Bb5 {[%emt 0:00:28]} Qc7 {[%emt 0:01:06]} 26. Qc4 {[%emt 0:00:40]} Qb7 {[%emt 0:04:20]} 27. Ba6 {[%emt 0:02:00]} Qd7 {[%emt 0:00:21]} 28. Bb5 {[%emt 0:00:04]} Qb7 {[%emt 0:02:14]} 29. d5 {[%emt 0:01:42]} Bf4 {[%emt 0:01:22]} 30. Qd3 {[%emt 0:00:57]} e6 {[%emt 0:03:13]} 31. dxe6 {[%emt 0:06:31]} Qe7 {[%emt 0:00:30]} 32. Kf1 {[%emt 0:01:45]} Qxe6 {[%emt 0:00:49]} 33. Bc4 {[%emt 0:01:08]} Qe5 {[%emt 0:02:41]} 34. Kg1 {[%emt 0:04:31]} Rh6 {[%emt 0:02:21]} 35. Bd5 {[%emt 0:00:03]} Rfh8 {[%emt 0:04:46]} 36. Rxa7 {[%emt 0:01:59]} Bxd5 {[%emt 0:01:19]} 37. Qa6 {[%emt 0:00:00]} R6h7 {[%emt 0:01:15]} 38. Qxb6+ {[%emt 0:00:31]} Rb7 {[%emt 0:00:37]} 39. Rxb7+ {[%emt 0:01:31]} Bxb7 {[%emt 0:00:08]} 40. Nf5 {[%emt 0:01:12]} Bd2 {[%emt 0:01:16]} 41. Nxd6 {[%emt 0:31:05]} Qh2+ {[%emt 0:31:12]} 42. Kf1 {[%emt 0:00:04]} Qh1+ {[%emt 0:00:17]} 43. Ke2 {[%emt 0:00:08]} Qxe1+ {[%emt 0:00:30]} 44. Kd3 {[%emt 0:00:01]} Qf1+ {[%emt 0:00:00]} 45. Kxd2 {[%emt 0:00:00]} Qa6 {[%emt 0:00:00]} 46. Qd4 {[%emt 0:00:00]} Rd8 {[%emt 0:00:00]} 47. e5 {[%emt 0:00:00]} Bxg2 {[%emt 0:00:00]} 48. Qxg4 {[%emt 0:00:00]} Bb7 {[%emt 0:00:00]} 49. Qb4 {[%emt 0:00:00]} Qa7 {[%emt 0:00:00]} 50. f4 {[%emt 0:00:00]} Qf2+ {[%emt 0:00:00]} 51. Kc1 {[%emt 0:00:00]} Qe1+ {[%emt 0:00:00]} 52. Kc2 {[%emt 0:00:00]} Qe2+ {[%emt 0:00:00]} 53. Kb1 {[%emt 0:00:00]} Qf1+ {[%emt 0:00:00]} 1/2-1/2